bitfinex-derivatives/quotes_ETHF0:USTF0_20250327
["timestamp","ask_amount","ask_price","bid_price","bid_amount"]
[1743098624985,3.03487569,2003.0,2002.9,0.99883]
[1743098626678,2.03609569,2003.0,2002.8,4.6584]
[1743098626883,2.34733,2002.9,2002.8,5.65728]
[1743098627083,1.3485,2002.9,2002.8,6.3622458]
[1743098627289,1.3485,2002.9,2002.8,7.49133502]
[1743098627591,1.3485,2002.9,2002.8,8.13163192]
[1743098627989,2.34733,2002.9,2002.8,8.13163192]
[1743098628190,1.3485,2002.9,2002.8,6.73323192]
[1743098628391,2.34733,2002.9,2002.8,6.73323192]
[1743098629098,1.3485,2002.9,2002.8,6.73323192]
[1743098629286,2.34733,2002.9,2002.8,6.73323192]
[1743098629591,1.3485,2002.9,2002.8,6.73323192]
[1743098629890,1.3485,2002.9,2002.8,6.73719638]
[1743098630687,2.34733,2002.9,2002.8,6.73719638]
[1743098631394,2.34733,2002.9,2002.8,1.34722747]
[1743098631586,2.34733,2002.9,2002.8,2.47856502]
[1743098631785,2.34733,2002.9,2002.8,1.3473231]
[1743098632384,0.99888,2002.8,2002.7,2.44129]
[1743098632589,3.11718,2002.8,2002.7,4.27935446]
[1743098632789,3.11718,2002.8,2002.7,3.47905483]
[1743098633489,3.11718,2002.8,2002.7,2.34793824]
[1743098633697,3.11718,2002.8,2002.7,3.47886737]
[1743098633996,3.11718,2002.8,2002.7,2.47997737]
[1743098634194,6.32498,2002.8,2002.7,1.34897614]
[1743098635489,6.32498,2002.8,2002.7,1.34877225]
[1743098637286,6.32498,2002.8,2002.7,0.64210037]
[1743098637490,6.32498,2002.8,2002.7,0.7065497]
[1743098640396,6.32498,2002.8,2002.7,2.0511497]
[1743098641197,6.32498,2002.8,2002.7,2.69262784]
[1743098641502,6.32498,2002.8,2002.7,1.34802784]
[1743098641799,6.32498,2002.8,2002.7,0.64147814]
[1743098642001,0.99893,2002.7,2002.6,1.00647569]
[1743098642199,2.40303,2002.7,2002.6,0.71373705]
[1743098642400,2.40303,2002.7,2002.6,1.35508485]
[1743098643500,2.40303,2002.7,2002.6,0.00749569]
[1743098648491,2.40303,2002.7,2002.4,0.99905]
[1743098648492,0.99903,2002.5,2002.4,0.99905]
[1743098648693,0.99903,2002.5,2002.4,1.70475174]
[1743098648893,0.99903,2002.5,2002.4,2.34572723]
[1743098649098,2.30643,2002.5,2002.4,2.34572723]
[1743098650006,2.30643,2002.5,2002.4,1.70470644]
[1743098650200,2.30643,2002.5,2002.4,2.3456405]
[1743098651207,1.3074,2002.5,2002.4,2.3456405]
[1743098651806,2.30643,2002.5,2002.4,2.34562238]
[1743098652505,1.3074,2002.5,2002.4,2.34562238]
[1743098652905,2.30643,2002.5,2002.4,1.34657238]
[1743098653199,0.99928,2002.0,2001.9,1.4093]
[1743098653402,0.99933,2001.9,2001.8,1.3226]
[1743098653604,2.39423,2001.9,2001.8,1.3226]
[1743098653808,3.82473,2001.9,2001.8,1.3226]
[1743098655505,3.82473,2001.9,2001.8,2.32198]
[1743098656301,2.39423,2001.9,2001.8,2.32198]
[1743098656705,2.39423,2001.9,2001.8,1.3226]
[1743098656902,2.39423,2001.9,2001.8,2.32198]
[1743098657104,2.39423,2001.9,2001.8,1.3226]
[1743098657297,2.39423,2001.9,2001.8,2.32198]
[1743098658099,3.2078,2002.0,2001.8,2.32198]
[1743098658304,5.56928,2002.0,2001.9,2.33913]
[1743098659897,5.56928,2002.0,2001.9,1.3398]
[1743098660303,0.99938,2001.8,2001.7,1.711]
[1743098660504,0.99938,2001.8,2001.7,3.0842]
[1743098665908,2.41828,2001.8,2001.7,3.0842]
[1743098666208,2.41828,2001.8,2001.7,2.0848]
[1743098666705,0.99943,2001.7,2001.6,0.00749569]
[1743098666905,6.90743,2001.7,2001.6,0.00749569]
[1743098667106,0.99953,2001.5,2001.4,1.3015]
[1743098667404,0.99965,2001.3,2001.2,0.99965]
[1743098667605,3.2078,2001.4,2001.3,0.99963]
[1743098667808,4.20742,2001.4,2001.3,0.99963]
[1743098668301,3.2078,2001.4,2001.2,1.3015]
[1743098668502,1.3158,2001.3,2001.2,2.30118]
[1743098668704,4.2074,2001.4,2001.3,0.99963]
[1743098668903,1.3158,2001.5,2001.4,0.99958]
[1743098669304,2.31533,2001.5,2001.4,0.99958]
[1743098670005,0.99949,2001.6,2001.5,0.99949]
[1743098670204,2.31959,2001.6,2001.5,0.99949]
[1743098670607,2.31959,2001.6,2001.5,2.36919]
[1743098671416,3.2078,2001.7,2001.6,0.99948]
[1743098671612,3.2078,2001.7,2001.6,2.35638]
[1743098673315,0.99943,2001.7,2001.6,2.35638]
[1743098673516,2.31863,2001.7,2001.6,2.35638]
[1743098676318,2.31863,2001.7,2001.6,1.3569]
[1743098676514,2.98263,2001.7,2001.6,2.35638]
[1743098676717,2.98263,2001.7,2001.6,1.3569]
[1743098677020,2.98263,2001.7,2001.6,2.35638]
[1743098677317,2.98263,2001.7,2001.6,1.3569]
[1743098677707,2.98263,2001.7,2001.6,2.35638]
[1743098681310,3.21529569,2002.0,2001.8,0.99933]
[1743098681515,2.39674,2001.9,2001.8,0.99933]
[1743098684416,3.21529569,2002.0,2001.9,0.99933]
[1743098684726,4.52089569,2002.0,2001.9,3.84057744]
[1743098684913,4.52089569,2002.0,2001.9,4.56197744]
[1743098685117,0.6751,2002.2,2002.1,0.99923]
[1743098685314,1.3056,2002.2,2002.1,1.70026684]
[1743098685726,1.3056,2002.2,2002.1,1.70026312]
[1743098686217,3.9047,2002.5,2002.2,2.49788]
[1743098686426,4.5134,2002.5,2002.4,0.99908]
[1743098686613,4.5134,2002.5,2002.4,1.70011312]
[1743098686614,5.51243,2002.5,2002.4,1.70011312]
[1743098686815,5.51243,2002.5,2002.4,3.14151312]
[1743098687218,4.5134,2002.5,2002.4,3.14151312]
[1743098687823,3.2078,2002.5,2002.4,3.14151312]
[1743098688333,1.00647569,2002.6,2002.5,0.99903]
[1743098688528,1.00647569,2002.6,2002.5,2.43423]
[1743098689037,0.00749569,2002.6,2002.5,2.43423]
[1743098690323,0.00749569,2002.6,2002.5,3.13322568]
[1743098690721,1.3689,2003.0,2002.9,0.99883]
[1743098690926,3.2078,2003.1,2003.0,0.99878]
[1743098692329,3.2078,2003.1,2003.0,4.25978]
[1743098694223,2.37503569,2003.3,2003.0,4.25978]
[1743098694224,0.00749569,2003.3,2003.2,0.99868]
[1743098694626,0.00749569,2003.3,2003.2,2.36958]
[1743098694929,4.5789,2003.7,2003.3,2.49652]
[1743098695135,5.57734,2003.7,2003.5,0.99853]
[1743098695328,5.57734,2003.7,2003.6,1.3709]
[1743098696026,5.57734,2003.7,2003.5,0.99853]
[1743098696027,0.99848,2003.6,2003.5,0.99853]
[1743098696225,0.99848,2003.6,2003.5,2.36943]
[1743098696423,5.57737,2003.7,2003.5,2.36943]
[1743098696628,4.5789,2003.7,2003.6,0.99848]
[1743098696831,3.2078,2003.7,2003.6,2.31648]
[1743098697132,1.00583569,2003.9,2003.7,0.99839]
[1743098697330,0.00749569,2003.9,2003.8,1.318]
[1743098697524,1.00582569,2003.9,2003.8,2.31638]
[1743098697939,0.00749569,2003.9,2003.8,2.31638]
[1743098699532,1.00582569,2003.9,2003.8,1.318]
[1743098700127,0.00749569,2003.9,2003.8,2.31638]
[1743098700939,1.00582569,2003.9,2003.8,2.31638]
[1743098701140,0.00749569,2003.9,2003.8,2.31638]
[1743098702033,3.2078,2004.3,2004.2,0.99818]
[1743098702433,0.99812,2004.4,2004.2,0.99818]
[1743098702642,3.2078,2004.6,2004.3,0.99811]
[1743098702838,3.2078,2004.6,2004.1,5.70337]
[1743098703040,4.20582,2004.6,2004.4,0.99806]
[1743098703241,2.41603,2004.5,2004.4,0.99806]
[1743098703534,1.418,2004.5,2004.4,0.99806]
[1743098703743,0.6618,2004.7,2004.6,0.99798]
[1743098704233,2.0798,2004.7,2004.6,0.99798]
[1743098705936,3.07773,2004.7,2004.6,0.99798]
[1743098706137,2.0798,2004.7,2004.6,0.99798]
[1743098707734,2.0798,2004.7,2004.6,4.25498]
[1743098708535,3.07773,2004.7,2004.6,5.59718]
[1743098709639,2.0798,2004.7,2004.6,5.59718]
[1743098709839,3.07773,2004.7,2004.6,5.59718]
[1743098710041,2.0798,2004.7,2004.6,5.59718]
[1743098710241,3.07773,2004.7,2004.6,5.59718]
[1743098710640,2.0798,2004.7,2004.6,5.59718]
[1743098711050,1.418,2004.7,2004.6,5.59718]
[1743098711443,2.40249,2005.0,2004.9,0.99783]
[1743098711642,0.99783,2004.9,2004.8,0.99784]
[1743098711837,1.4047,2005.0,2004.9,0.99783]
[1743098712043,3.2078,2005.2,2005.0,0.99775]
[1743098712245,4.20551,2005.2,2005.0,0.99775]
[1743098712438,3.2078,2005.2,2005.1,0.99773]
[1743098712743,3.2078,2005.6,2005.5,0.99753]
[1743098712941,5.51088,2005.6,2005.5,0.99753]
[1743098713141,4.5134,2005.6,2005.5,0.99753]
[1743098713837,2.30309,2005.6,2005.5,0.99753]
[1743098714043,1.3056,2005.6,2005.5,0.99753]
[1743098716058,1.3056,2005.6,2005.5,2.36583]
[1743098718251,2.30308,2005.6,2005.5,1.3683]
[1743098718454,2.30308,2005.6,2005.5,3.256]
[1743098720567,0.99758,2005.4,2005.3,6.37721569]
[1743098720863,1.71125,2005.5,2005.4,0.99758]
[1743098721062,2.1449,2005.5,2005.4,0.99758]
[1743098721267,1.4312,2005.5,2005.4,2.34498]
[1743098721567,1.4312,2005.5,2005.4,5.59998]
[1743098722069,3.2078,2005.9,2005.4,10.30416]
[1743098722256,2.42858,2005.8,2005.7,0.99743]
[1743098722463,1.4312,2005.8,2005.7,4.25243]
[1743098722664,2.42858,2005.8,2005.7,4.25243]
[1743098724863,1.4312,2005.8,2005.7,4.25243]
[1743098725063,2.42858,2005.8,2005.7,4.25243]
[1743098725866,1.4312,2005.8,2005.7,4.25243]
[1743098726068,2.42858,2005.8,2005.7,4.25243]
[1743098726758,4.20517,2005.9,2005.8,0.99738]
[1743098726968,4.20517,2005.9,2005.8,2.32168]
[1743098727167,3.2078,2005.9,2005.8,2.32168]
[1743098727356,3.2078,2005.9,2005.8,3.0141057]
[1743098727757,3.2078,2005.9,2005.8,3.01402806]
[1743098727758,4.5205,2005.9,2005.8,3.01402806]
[1743098727960,5.51783,2005.9,2005.8,2.01664806]
[1743098728168,0.99743,2005.7,2005.6,1.314]
[1743098728374,0.99743,2005.7,2005.6,6.25929319]
[1743098728872,1.71913,2005.7,2005.6,6.25929319]
[1743098729572,1.4062,2005.7,2005.6,4.94587914]
[1743098729975,2.7189,2005.7,2005.6,4.94587914]
[1743098730766,3.71633,2005.7,2005.6,1.69087914]
[1743098730974,3.71633,2005.7,2005.6,0.69339914]
[1743098731169,0.99748,2005.6,2005.5,4.25153]
[1743098731370,2.33798,2005.6,2005.5,3.94757744]
[1743098731570,5.54578,2005.6,2005.5,3.254]
[1743098731872,5.54578,2005.6,2005.5,3.94794596]
[1743098732063,5.54578,2005.6,2005.5,4.94547596]
[1743098733170,5.54578,2005.6,2005.5,1.69147596]
[1743098735376,5.54578,2005.6,2005.5,1.69232562]
[1743098735778,1.3405,2005.6,2005.5,1.69232562]
[1743098736081,4.20516,2005.9,2005.8,0.99738]
[1743098736272,4.20516,2005.9,2005.8,1.69217562]
[1743098736677,4.20516,2005.9,2005.8,0.69479562]
[1743098736883,4.20516,2005.9,2005.8,1.69217562]
[1743098737079,4.20516,2005.9,2005.8,1.69265845]
[1743098742784,4.20516,2005.9,2005.8,1.69529584]
[1743098743781,4.20516,2005.9,2005.8,0.69791584]
[1743098743987,4.20516,2005.9,2005.8,1.69529584]
[1743098744686,4.20516,2005.9,2005.8,1.69546452]
[1743098745083,4.20516,2005.9,2005.8,0.69808452]
[1743098745280,4.20516,2005.9,2005.8,1.69546452]
[1743098745483,4.20516,2005.9,2005.8,0.69808452]
[1743098745683,4.20516,2005.9,2005.8,1.69546452]
[1743098746693,4.20516,2005.9,2005.8,1.69589832]
[1743098748592,4.20516,2005.9,2005.8,1.69590765]
[1743098748991,4.20516,2005.9,2005.8,0.69852765]
[1743098749300,4.20516,2005.9,2005.8,1.69590765]
[1743098750496,4.20516,2005.9,2005.8,1.69586242]
[1743098751995,4.20516,2005.9,2005.8,0.69848242]
[1743098752296,4.20516,2005.9,2005.7,0.99738]
[1743098752297,0.99738,2005.8,2005.7,0.99738]
[1743098752492,2.32738,2005.8,2005.7,1.69608619]
[1743098753400,2.32738,2005.8,2005.7,0.69865619]
[1743098754302,2.32738,2005.8,2005.7,1.69644069]
[1743098754800,0.99743,2005.7,2005.6,2.35034]
[1743098755001,3.77373,2005.7,2005.6,3.04937818]
[1743098755201,3.77373,2005.7,2005.6,1.69647818]
[1743098755599,3.77373,2005.7,2005.6,0.69903818]
[1743098755998,3.77373,2005.7,2005.6,1.69651818]
[1743098756195,3.77373,2005.7,2005.6,0.69903818]
[1743098756598,3.77373,2005.7,2005.6,1.69651818]
[1743098757099,3.77373,2005.7,2005.6,0.99748]
[1743098757298,3.77373,2005.7,2005.6,1.6965261]
[1743098757598,2.43343,2005.7,2005.6,1.6965261]
[1743098757806,2.43343,2005.7,2005.6,2.4015261]
[1743098759902,2.43343,2005.7,2005.6,1.70248]
[1743098760105,2.43343,2005.7,2005.6,2.40155061]
[1743098761108,2.43343,2005.7,2005.6,1.69655061]
[1743098761304,2.43343,2005.7,2005.6,1.6964535]
[1743098761907,0.99748,2005.6,2005.5,2.42709]
[1743098762108,2.35048,2005.6,2005.5,2.12870873]
[1743098762407,2.35048,2005.6,2005.5,1.69663873]
[1743098762903,2.35048,2005.6,2005.5,0.69910873]
[1743098763108,0.99758,2005.4,2005.3,0.00749569]
[1743098763903,2.36948,2005.4,2005.3,0.00749569]
[1743098764905,2.36948,2005.4,2005.3,1.00512569]
[1743098765610,2.36948,2005.4,2005.3,2.36842569]
[1743098767107,0.99756,2005.5,2005.4,0.99753]
[1743098767309,0.99758,2005.4,2005.3,1.00508569]
[1743098767509,0.99758,2005.4,2005.3,1.70294599]
[1743098768008,0.99758,2005.4,2005.3,1.00508569]
[1743098768397,2.37708,2005.4,2005.3,2.43878569]
[1743098769207,2.37708,2005.4,2005.3,1.44119569]
[1743098769613,2.37708,2005.4,2005.3,2.43882569]
[1743098769803,3.2078,2005.9,2005.3,2.13865158]
[1743098770004,5.70115,2005.9,2005.5,5.7016]
[1743098770201,0.99743,2005.7,2005.6,3.68698589]
[1743098770400,2.39882,2005.8,2005.7,0.99743]
[1743098770609,3.2078,2005.9,2005.8,0.99738]
[1743098770801,3.2078,2005.9,2005.8,1.69446073]
[1743098771006,3.2078,2005.9,2005.8,3.00666073]
[1743098771504,1.428,2006.1,2006.0,0.99726]
[1743098771505,0.99726,2006.1,2006.0,0.99726]
[1743098771705,0.99728,2006.0,2005.9,4.5662]
[1743098772110,2.42528,2006.0,2005.9,4.5662]
[1743098772310,2.42528,2006.0,2005.9,5.56353]
[1743098772516,0.99728,2006.0,2005.9,6.26046656]
[1743098773808,0.99728,2006.0,2005.9,5.26202365]
[1743098774007,0.99728,2006.0,2005.9,4.5652]
[1743098774308,0.99728,2006.0,2005.9,5.56253]
[1743098774513,0.99728,2006.0,2005.9,4.5652]
[1743098774714,0.99728,2006.0,2005.9,5.56253]
[1743098775610,2.39867,2006.1,2006.0,0.99728]
[1743098775916,2.39867,2006.1,2006.0,2.42768]
[1743098776119,2.39867,2006.1,2006.0,3.12128]
[1743098777315,2.39867,2006.1,2006.0,1.4304]
[1743098777916,2.39867,2006.1,2006.0,2.42768]
[1743098778115,2.39867,2006.1,2006.0,1.4304]
[1743098778618,2.39867,2006.1,2006.0,2.42768]
[1743098779810,2.39867,2006.1,2006.0,1.4304]
[1743098780116,0.99733,2005.9,2005.8,4.25038]
[1743098780321,0.99733,2005.9,2005.8,5.66428]
[1743098780714,1.66723,2005.9,2005.8,5.66428]
[1743098782413,0.99733,2005.9,2005.8,5.66428]
[1743098783010,0.99733,2005.9,2005.8,4.6669]
[1743098783907,4.20513,2005.9,2005.8,4.6669]
[1743098784422,0.99743,2005.7,2005.6,3.9329]
[1743098784721,0.99743,2005.7,2005.6,6.06741785]
[1743098784920,0.99743,2005.7,2005.6,7.06488785]
[1743098785218,2.32973,2005.7,2005.6,6.36847]
[1743098785517,2.32973,2005.7,2005.6,6.36848]
[1743098787621,2.32973,2005.7,2005.6,5.371]
[1743098787920,2.32973,2005.7,2005.6,1.4381]
[1743098788219,0.99748,2005.6,2005.5,3.253]
[1743098788415,2.35558,2005.6,2005.5,1.4097]
[1743098788618,2.35558,2005.6,2005.5,5.66023]
[1743098789012,2.35558,2005.6,2005.5,4.6627]
[1743098789213,2.35558,2005.6,2005.5,5.66023]
[1743098789409,2.35558,2005.6,2005.5,2.40723]
[1743098789814,2.35558,2005.6,2005.5,1.4097]
[1743098790018,2.35558,2005.6,2005.5,2.40723]
[1743098790332,2.35558,2005.6,2005.5,1.4097]
[1743098790518,2.35558,2005.6,2005.5,2.40723]
[1743098790720,2.35558,2005.6,2005.5,1.4097]
[1743098790922,2.35558,2005.6,2005.5,2.40723]
[1743098794620,0.99746,2005.7,2005.5,2.1070927]
[1743098794918,2.37273,2005.8,2005.7,0.99738]
[1743098795118,0.99743,2005.7,2005.6,2.42584]
[1743098795319,2.37273,2005.7,2005.6,2.42584]
[1743098796514,2.37273,2005.7,2005.6,3.12427892]
[1743098797115,2.37273,2005.7,2005.6,2.42584]
[1743098797314,2.37273,2005.7,2005.6,3.12453541]
[1743098799022,2.37273,2005.7,2005.6,2.42584]
[1743098799214,2.37273,2005.7,2005.6,3.12526589]
[1743098801023,2.37273,2005.7,2005.6,3.12574984]
[1743098802219,2.37273,2005.7,2005.6,3.12578984]
[1743098802420,2.37273,2005.7,2005.6,2.12830984]
[1743098802620,2.37273,2005.7,2005.6,3.12578984]
[1743098802820,2.37273,2005.7,2005.6,2.12768956]
[1743098803225,2.37273,2005.7,2005.6,3.12516956]
[1743098803818,2.37273,2005.7,2005.6,2.42588]
[1743098804014,2.37273,2005.7,2005.6,3.12514236]
[1743098804726,2.37273,2005.7,2005.6,3.12514829]
[1743098805128,2.37273,2005.7,2005.6,2.42588]
[1743098805422,4.20516,2005.9,2005.8,0.99738]
[1743098805624,3.2078,2005.9,2005.8,1.69665529]
[1743098805822,3.2078,2005.9,2005.8,4.94965529]
[1743098806026,1.3609,2006.4,2006.1,0.99723]
[1743098806229,1.3609,2006.4,2006.3,0.99713]
[1743098806230,2.358,2006.4,2006.3,0.99713]
[1743098806618,10.93633,2006.9,2006.3,0.99713]
[1743098806619,3.2078,2006.8,2006.6,0.99695]
[1743098806827,3.2078,2006.8,2006.5,0.99698]
[1743098806828,0.99703,2006.6,2006.5,0.99698]
[1743098807021,0.99703,2006.6,2006.5,1.00445664]
[1743098807220,0.99703,2006.6,2006.5,0.00747664]
[1743098807422,0.99703,2006.6,2006.5,1.00450664]
[1743098807631,0.99703,2006.6,2006.5,0.00747664]
[1743098807833,0.99703,2006.6,2006.5,2.40220664]
[1743098808225,1.444,2006.7,2006.6,0.99698]
[1743098808426,2.44094,2006.7,2006.6,0.99698]
[1743098808931,1.444,2006.7,2006.6,0.99698]
[1743098809324,2.44094,2006.7,2006.6,0.99698]
[1743098809926,1.444,2006.7,2006.6,0.99698]
[1743098811135,2.44094,2006.7,2006.6,0.99698]
[1743098811329,2.44094,2006.7,2006.5,3.25947664]
[1743098811330,0.99698,2006.6,2006.5,3.25947664]
[1743098811529,2.36058,2006.6,2006.5,3.25947664]
[1743098811733,1.3636,2006.6,2006.5,4.25650664]
[1743098811934,2.36058,2006.6,2006.5,4.25650664]
[1743098812137,1.3636,2006.6,2006.5,4.25650664]
[1743098812634,2.36058,2006.6,2006.5,4.25650664]
[1743098812841,2.36058,2006.6,2006.5,3.25947664]
[1743098813033,2.36058,2006.6,2006.5,4.25650664]
[1743098813234,2.36058,2006.6,2006.5,3.25947664]
[1743098815230,2.36058,2006.6,2006.5,0.00747664]
[1743098820634,3.2078,2007.5,2006.5,8.96727664]
[1743098820828,3.2078,2007.5,2007.0,5.69967]
[1743098821033,1.4446,2007.4,2007.3,0.99664]
[1743098821335,1.4446,2007.4,2007.1,5.3508]
[1743098821540,1.4446,2007.4,2007.2,1.3025]
[1743098821738,3.12572,2007.4,2007.3,0.99664]
[1743098823841,2.1291,2007.4,2007.3,0.99664]
[1743098824340,3.12572,2007.4,2007.3,0.99664]
[1743098825035,3.12569,2007.4,2007.3,0.99664]
[1743098826139,1.4446,2007.4,2007.3,0.99664]
[1743098826329,2.44119,2007.4,2007.3,0.99664]
[1743098826732,1.4446,2007.4,2007.3,0.99664]
[1743098827846,2.44119,2007.4,2007.3,0.99664]
[1743098828643,0.99664,2007.3,2007.2,5.56317]
[1743098828838,2.38424,2007.3,2007.2,5.56317]
[1743098829035,1.3876,2007.3,2007.2,5.56317]
[1743098830637,4.20437,2007.5,2007.4,0.99659]
[1743098831335,3.2078,2007.5,2007.4,0.99659]
[1743098832837,4.5787,2007.5,2007.4,0.99659]
[1743098834231,4.5787,2007.5,2007.4,2.39769]
[1743098834438,1.3709,2007.5,2007.4,5.60549]
[1743098836234,1.7074,2007.6,2007.4,5.60549]
[1743098836235,0.99652,2007.6,2007.4,7.10037]
[1743098836435,1.3693,2007.5,2007.4,5.60549]
[1743098836639,1.3693,2007.5,2007.4,7.46439]
[1743098837335,0.6504,2007.6,2007.5,0.99654]
[1743098837536,0.99644,2007.7,2007.6,0.99644]
[1743098837743,1.355,2007.7,2007.6,0.99644]
[1743098839343,0.6504,2007.9,2007.8,0.99639]
[1743098839540,2.0054,2007.9,2007.8,4.20419]
[1743098839735,3.00174,2007.9,2007.8,4.20419]
[1743098839944,2.0054,2007.9,2007.8,4.20419]
[1743098842738,3.00174,2007.9,2007.8,4.20419]
[1743098842940,2.0054,2007.9,2007.8,7.46719]
[1743098843244,3.00174,2007.9,2007.8,7.46619]
[1743098843444,2.0054,2007.9,2007.8,7.46619]
[1743098845041,3.00174,2007.9,2007.8,4.20419]
[1743098846644,2.0054,2007.9,2007.8,4.20419]
[1743098846846,3.00174,2007.9,2007.8,4.20419]
[1743098847144,2.0054,2007.9,2007.8,4.20419]
[1743098847450,3.00174,2007.9,2007.8,4.20419]
[1743098847654,2.0054,2007.9,2007.8,4.20419]
[1743098847948,3.00174,2007.9,2007.8,4.20419]
[1743098849244,3.00174,2007.9,2007.8,4.89910727]
[1743098850045,0.99644,2007.7,2007.6,0.00747664]
[1743098850543,0.99644,2007.7,2007.6,1.00396664]
[1743098850748,2.42364,2007.7,2007.6,0.00747664]
[1743098850951,2.42364,2007.7,2007.6,1.00396664]
[1743098851344,2.42364,2007.7,2007.6,0.00747664]
[1743098854152,2.42364,2007.7,2007.6,1.00396664]
[1743098854355,2.42364,2007.7,2007.6,0.00747664]
[1743098860764,2.42364,2007.7,2007.6,1.30787664]
[1743098861166,2.42364,2007.7,2007.6,2.30436664]
[1743098861457,2.42364,2007.7,2007.6,5.55736664]
[1743098861662,2.42364,2007.7,2007.6,28.45736664]
[1743098861859,2.42364,2007.7,2007.6,5.55736664]
[1743098866568,2.42364,2007.7,2007.6,6.24801253]
[1743098867569,2.42364,2007.7,2007.6,5.55736664]
[1743098867869,2.42364,2007.7,2007.6,6.2480234]
[1743098868069,2.42364,2007.7,2007.6,4.56087664]
[1743098868370,2.42364,2007.7,2007.6,5.55736664]
[1743098869073,2.42364,2007.7,2007.6,4.56087664]
[1743098869263,2.42364,2007.7,2007.6,1.30787664]
[1743098869464,2.42364,2007.7,2007.6,0.00747664]
[1743098869863,2.42364,2007.7,2007.6,1.00396664]
[1743098870056,2.42364,2007.7,2007.6,1.37487664]
[1743098871663,2.42364,2007.7,2007.6,2.37136664]
[1743098871864,2.42364,2007.7,2007.6,1.37487664]
[1743098872066,2.42364,2007.7,2007.6,2.37136664]
[1743098874472,2.42364,2007.7,2007.6,3.03836664]
[1743098874666,2.42364,2007.7,2007.6,2.04187664]
[1743098874877,2.42364,2007.7,2007.6,3.03836664]
[1743098876273,2.42364,2007.7,2007.6,3.72968158]
[1743098877267,2.42364,2007.7,2007.6,3.03836664]
[1743098877468,2.42364,2007.7,2007.6,4.38137185]
[1743098880978,2.42364,2007.7,2007.6,4.38199888]
[1743098881179,2.42364,2007.7,2007.6,3.03836664]
[1743098881474,2.42364,2007.7,2007.6,3.73070517]
[1743098881681,3.08334,2007.7,2007.6,3.06370517]
[1743098881977,3.08334,2007.7,2007.6,0.69233853]
[1743098882175,0.99679,2007.0,2006.9,2.3658]
[1743098882380,0.99679,2007.0,2006.9,3.7318]
[1743098882682,0.99679,2007.0,2006.9,29.8818]
[1743098882876,3.81018,2007.1,2007.0,0.99679]
[1743098883080,1.4332,2007.1,2007.0,2.30009]
[1743098883473,2.42994,2007.1,2007.0,5.55009]
[1743098883673,1.4332,2007.1,2007.0,5.55009]
[1743098883977,0.00741313,2007.3,2007.2,0.99669]
[1743098884177,1.00405313,2007.3,2007.2,0.99669]
[1743098884373,1.00405313,2007.3,2007.2,2.29999]
[1743098884574,1.00405313,2007.3,2007.2,1.3033]
[1743098884772,0.99669,2007.2,2007.1,3.2078]
[1743098885086,0.99678,2007.1,2007.0,0.99674]
[1743098885276,0.99678,2007.1,2007.0,2.30004]
[1743098885585,2.39998,2007.1,2007.0,2.30004]
[1743098886383,2.39998,2007.1,2007.0,2.30009]
[1743098886681,3.08568,2007.1,2007.0,1.3033]
[1743098887070,3.08568,2007.1,2007.0,2.30009]
[1743098887374,3.08568,2007.1,2007.0,1.3033]
[1743098887580,3.08568,2007.1,2007.0,2.30009]
[1743098888277,2.0889,2007.1,2007.0,2.30009]
[1743098889487,3.08564,2007.1,2007.0,2.30009]
[1743098889684,2.0889,2007.1,2007.0,2.30009]
[1743098890088,0.99679,2007.0,2006.9,27.8126]
[1743098890286,2.33249,2007.0,2006.9,29.1557]
[1743098890587,2.33249,2007.0,2006.9,25.9057]
[1743098890887,2.33249,2007.0,2006.9,25.2399]
[1743098891483,2.33249,2007.0,2006.9,22.9]
[1743098892386,0.99684,2006.9,2006.8,4.21216664]
[1743098892579,3.05774,2006.9,2006.8,4.21216664]
[1743098892779,3.05774,2006.9,2006.8,5.59136664]
[1743098894888,3.05774,2006.9,2006.8,3.21527664]
[1743098895393,3.05774,2006.9,2006.8,4.21216664]
[1743098896585,1.3724,2006.9,2006.8,4.21216664]
[1743098896790,0.6857,2007.1,2007.0,0.99679]
[1743098897188,9.16721313,2007.3,2007.1,0.9967]
[1743098897382,0.99672,2007.2,2007.1,0.9967]
[1743098897887,0.99674,2007.1,2007.0,2.43655]
[1743098898889,2.34133,2007.2,2007.1,0.99674]
[1743098899191,2.34133,2007.2,2007.1,2.43654]
[1743098899584,0.99674,2007.1,2007.0,0.99675]
[1743098899778,0.99674,2007.1,2007.0,2.43655]
[1743098899779,3.03674,2007.1,2007.0,2.43655]
[1743098900483,3.03674,2007.1,2007.0,1.4398]
[1743098900685,0.99684,2006.9,2006.8,3.21527664]
[1743098900884,0.99684,2006.9,2006.8,0.00747664]
[1743098901184,0.99684,2006.9,2006.8,1.00436664]
[1743098901381,2.30284,2006.9,2006.8,0.00747664]
[1743098901690,2.30284,2006.9,2006.8,1.00436664]
[1743098902483,2.30284,2006.9,2006.8,0.00747664]
[1743098903691,0.99708,2006.4,2006.3,3.007]
[1743098903882,0.99708,2006.4,2006.3,2.3301]
[1743098904082,0.99708,2006.4,2006.3,25.2301]
[1743098904278,0.99708,2006.4,2006.3,24.233]
[1743098904482,0.99718,2006.2,2006.1,51.90711]
[1743098904689,0.99718,2006.2,2006.1,1.68158664]
[1743098904994,0.99718,2006.2,2006.1,24.58158664]
[1743098905492,0.99718,2006.2,2006.1,22.90747664]
[1743098905885,0.99718,2006.2,2006.1,23.90470664]
[1743098906391,0.99718,2006.2,2006.1,22.90747664]
[1743098907282,0.99718,2006.2,2006.1,0.00747664]
[1743098908987,0.99718,2006.2,2006.1,2.38800664]
[1743098909194,0.99718,2006.2,2006.1,1.39077664]
[1743098913100,0.99718,2006.2,2006.1,2.38800664]
[1743098913307,0.99718,2006.2,2006.1,0.00747664]
[1743098914798,1.71208,2006.2,2006.1,0.00747664]
[1743098916700,1.71208,2006.2,2006.1,1.39017664]